[Event "*** Titled Tuesday 3|2 Blitz"]
[Site "Chess.com"]
[Date "2016.08.02"]
[Round "7"]
[White "Colombiano07"]
[Black "eltenedor"]
[Result "1-0"]
[WhiteElo "2223"]
[BlackElo "2021"]
[TimeControl "180+2"]
[EndTime "12:34:39 PDT"]
[Termination "Colombiano07 won by resignation"]

1. e4 {[%clk 0:03:01.9]} 1... d5 {[%clk 0:02:57.4]} 2. d4 {[%clk 0:03:00.4]}
2... dxe4 {[%clk 0:02:53.8]} 3. Nc3 {[%clk 0:03:00.1]} 3... c6 {[%clk
0:02:50.8]} 4. Nxe4 {[%clk 0:02:59.3]} 4... e5 {[%clk 0:02:49.2]} 5. dxe5 {[%clk
0:02:57.3]} 5... Qxd1+ {[%clk 0:02:48.5]} 6. Kxd1 {[%clk 0:02:57.9]} 6... Nd7
{[%clk 0:02:39.4]} 7. f4 {[%clk 0:02:53.3]} 7... f6 {[%clk 0:02:34.8]} 8. exf6
{[%clk 0:02:53.5]} 8... Ngxf6 {[%clk 0:02:35.1]} 9. Nxf6+ {[%clk 0:02:54.2]}
9... Nxf6 {[%clk 0:02:35]} 10. Bd3 {[%clk 0:02:52.4]} 10... Bg4+ {[%clk
0:02:34.3]} 11. Ne2 {[%clk 0:02:52.6]} 11... O-O-O {[%clk 0:02:33.9]} 12. Bd2
{[%clk 0:02:48]} 12... Bc5 {[%clk 0:02:30.4]} 13. h3 {[%clk 0:02:48.4]} 13...
Bh5 {[%clk 0:02:18.7]} 14. g4 {[%clk 0:02:49]} 14... Bf7 {[%clk 0:02:17.2]} 15.
b4 {[%clk 0:02:43.8]} 15... Bf2 {[%clk 0:02:02.5]} 16. Kc1 {[%clk 0:02:42.9]}
16... Rhe8 {[%clk 0:02:00.3]} 17. Nc3 {[%clk 0:02:38.1]} 17... Nd5 {[%clk
0:01:50]} 18. Nxd5 {[%clk 0:02:36.1]} 18... Bxd5 {[%clk 0:01:48.7]} 19. Rf1
{[%clk 0:02:37.6]} 19... Bd4 {[%clk 0:01:48.4]} 20. c3 {[%clk 0:02:35]} 20...
Be3 {[%clk 0:01:35.8]} 21. Re1 {[%clk 0:02:07.1]} 21... Bxf4 {[%clk 0:01:05.5]}
22. Rxe8 {[%clk 0:02:00.5]} 22... Bxd2+ {[%clk 0:01:05.4]} 23. Kxd2 {[%clk
0:02:02.4]} 23... Rxe8 {[%clk 0:01:06.7]} 24. Bxh7 {[%clk 0:02:02.1]} 24... Bg2
{[%clk 0:01:02]} 25. Bf5+ {[%clk 0:01:59.6]} 25... Kc7 {[%clk 0:01:02.2]} 26. h4
{[%clk 0:02:00.1]} 26... Bf3 {[%clk 0:00:57.2]} 27. Re1 {[%clk 0:01:57.3]} 27...
Rd8+ {[%clk 0:00:53.6]} 28. Kc2 {[%clk 0:01:54.3]} 28... Kd6 {[%clk 0:00:52.8]}
29. Re3 {[%clk 0:01:52.5]} 29... Bd5 {[%clk 0:00:53]} 30. a3 {[%clk 0:01:45.5]}
30... a5 {[%clk 0:00:48.1]} 31. Bd3 {[%clk 0:01:40.7]} 31... axb4 {[%clk
0:00:44.5]} 32. axb4 {[%clk 0:01:40.7]} 32... Ra8 {[%clk 0:00:39.1]} 33. c4
{[%clk 0:01:41.5]} 33... Be6 {[%clk 0:00:35.1]} 34. c5+ {[%clk 0:01:26.4]} 34...
Kd5 {[%clk 0:00:30.5]} 35. Kc3 {[%clk 0:01:05.6]} 35... Ra3+ {[%clk 0:00:25.8]}
36. Kd2 {[%clk 0:01:06.7]} 36... Bxg4 {[%clk 0:00:23]} 37. Be4+ {[%clk
0:01:01.8]} 37... Kd4 {[%clk 0:00:20.1]} 38. Rxa3 {[%clk 0:01:00.9]} 38... Kxe4
{[%clk 0:00:21]} 39. Ra7 {[%clk 0:01:02]} 39... g6 {[%clk 0:00:14.5]} 40. Rxb7
{[%clk 0:01:01.9]} 40... Be6 {[%clk 0:00:14.7]} 41. Re7 {[%clk 0:01:01.8]} 41...
Kd5 {[%clk 0:00:13.6]} 42. Ke3 {[%clk 0:00:57.1]} 42... Bf5 {[%clk 0:00:10.1]}
43. Kf4 {[%clk 0:00:58.2]} 43... Kc4 {[%clk 0:00:10.7]} 44. Rb7 {[%clk 0:00:58]}
44... Kd5 {[%clk 0:00:07.3]} 45. h5 {[%clk 0:00:59]} 45... Bc2 {[%clk
0:00:06.8]} 46. h6 {[%clk 0:00:59.8]} 1-0

[Event "*** Titled Tuesday 3|2 Blitz"]
[Site "Chess.com"]
[Date "2016.08.02"]
[Round "7"]
[White "stepanosinovsky"]
[Black "Generalas"]
[Result "1-0"]
[WhiteElo "2192"]
[BlackElo "2230"]
[TimeControl "180+2"]
[EndTime "12:34:44 PDT"]
[Termination "stepanosinovsky won by resignation"]

1. e4 {[%clk 0:03:01.9]} 1... e5 {[%clk 0:03:01]} 2. Nf3 {[%clk 0:03:01.9]} 2...
Nc6 {[%clk 0:03:01.1]} 3. Bb5 {[%clk 0:03:02.8]} 3... a6 {[%clk 0:03:01.6]} 4.
Ba4 {[%clk 0:03:04.4]} 4... Nf6 {[%clk 0:03:02.3]} 5. O-O {[%clk 0:03:06]} 5...
b5 {[%clk 0:03:03.2]} 6. Bb3 {[%clk 0:03:05.8]} 6... Be7 {[%clk 0:03:04.8]} 7.
d4 {[%clk 0:03:06.2]} 7... Nxd4 {[%clk 0:02:58.4]} 8. Nxd4 {[%clk 0:02:59.2]}
8... exd4 {[%clk 0:02:58.4]} 9. e5 {[%clk 0:03:00.1]} 9... Ng8 {[%clk
0:02:45.7]} 10. Qf3 {[%clk 0:02:50.5]} 10... f6 {[%clk 0:01:25.8]} 11. Qxa8
{[%clk 0:02:42.4]} 11... fxe5 {[%clk 0:01:26.2]} 12. Qd5 {[%clk 0:02:10.3]}
12... d6 {[%clk 0:01:16]} 13. Qf7+ {[%clk 0:02:10.9]} 13... Kd7 {[%clk
0:01:17.1]} 14. Qxg7 {[%clk 0:02:11.6]} 14... Nf6 {[%clk 0:01:15.8]} 15. a4
{[%clk 0:01:55.9]} 15... d5 {[%clk 0:01:07.4]} 16. axb5 {[%clk 0:01:42.6]} 16...
Rg8 {[%clk 0:01:07.4]} 17. Qh6 {[%clk 0:01:34.6]} 17... Rg6 {[%clk 0:01:07.4]}
18. Qd2 {[%clk 0:01:12.1]} 18... axb5 {[%clk 0:01:06.4]} 19. c3 {[%clk
0:01:12.6]} 19... Ne4 {[%clk 0:00:59.3]} 20. Qe2 {[%clk 0:01:12.1]} 20... c6
{[%clk 0:00:45.6]} 21. Nd2 {[%clk 0:01:09.7]} 21... d3 {[%clk 0:00:33.2]} 22.
Qxd3 {[%clk 0:01:02.1]} 22... Nc5 {[%clk 0:00:33.6]} 23. Qe2 {[%clk 0:00:52.2]}
23... Qb6 {[%clk 0:00:30.1]} 24. Nf3 {[%clk 0:00:47.4]} 24... Nxb3 {[%clk
0:00:26.6]} 25. Nxe5+ {[%clk 0:00:48.2]} 25... Kd8 {[%clk 0:00:25.3]} 26. Nxg6
{[%clk 0:00:47.2]} 26... hxg6 {[%clk 0:00:26.5]} 27. Re1 {[%clk 0:00:44.8]}
27... Qc7 {[%clk 0:00:21]} 28. Bf4 {[%clk 0:00:42.5]} 28... Qd7 {[%clk 0:00:19]}
29. Ra8 {[%clk 0:00:39.3]} 29... Bf6 {[%clk 0:00:14.9]} 30. Qc2 {[%clk
0:00:23.7]} 30... Nc5 {[%clk 0:00:15.4]} 31. Qxg6 {[%clk 0:00:23.9]} 31... Ne4
{[%clk 0:00:07.4]} 32. Rxe4 {[%clk 0:00:22.6]} 32... dxe4 {[%clk 0:00:08.5]} 33.
Qxf6+ {[%clk 0:00:23.3]} 33... Ke8 {[%clk 0:00:10.2]} 34. Bd6 {[%clk 0:00:22.2]}
1-0

[Event "*** Titled Tuesday 3|2 Blitz"]
[Site "Chess.com"]
[Date "2016.08.02"]
[Round "7"]
[White "GremioPrudente"]
[Black "Journey_to_GrandMaster_YT"]
[Result "0-1"]
[WhiteElo "2076"]
[BlackElo "2428"]
[TimeControl "180+2"]
[EndTime "12:34:45 PDT"]
[Termination "Journey_to_GrandMaster_YT won by checkmate"]

1. Nf3 {[%clk 0:03:01.9]} 1... d6 {[%clk 0:03:01.2]} 2. d4 {[%clk 0:03:01.4]}
2... Nf6 {[%clk 0:03:03]} 3. c4 {[%clk 0:03:00.1]} 3... Nbd7 {[%clk 0:03:04.9]}
4. Nc3 {[%clk 0:03:00.8]} 4... e5 {[%clk 0:03:06.5]} 5. e4 {[%clk 0:03:01.9]}
5... Be7 {[%clk 0:03:08]} 6. Be2 {[%clk 0:03:02.7]} 6... O-O {[%clk 0:03:09.6]}
7. O-O {[%clk 0:03:03.6]} 7... c6 {[%clk 0:03:11.3]} 8. Bg5 {[%clk 0:03:04.3]}
8... a6 {[%clk 0:03:12.7]} 9. Qc2 {[%clk 0:03:03]} 9... b5 {[%clk 0:03:12.8]}
10. a3 {[%clk 0:02:58.2]} 10... Bb7 {[%clk 0:03:10.3]} 11. Rfd1 {[%clk
0:02:55.3]} 11... Qc7 {[%clk 0:03:07.5]} 12. Rac1 {[%clk 0:02:44.2]} 12... Rac8
{[%clk 0:02:56.5]} 13. cxb5 {[%clk 0:02:38.2]} 13... cxb5 {[%clk 0:02:56.3]} 14.
Bxf6 {[%clk 0:02:30.8]} 14... Nxf6 {[%clk 0:02:53.6]} 15. Qb1 {[%clk 0:02:10.3]}
15... Qb8 {[%clk 0:02:34.5]} 16. dxe5 {[%clk 0:02:05.2]} 16... dxe5 {[%clk
0:02:34.3]} 17. Nd5 {[%clk 0:02:04]} 17... Nxd5 {[%clk 0:02:33.3]} 18. exd5
{[%clk 0:02:00.4]} 18... Bd6 {[%clk 0:02:33.8]} 19. Rxc8 {[%clk 0:01:52.7]}
19... Qxc8 {[%clk 0:02:26.1]} 20. Ng5 {[%clk 0:01:49.3]} 20... g6 {[%clk
0:02:26.7]} 21. Ne4 {[%clk 0:01:42.8]} 21... Bb8 {[%clk 0:02:21.8]} 22. d6
{[%clk 0:01:15.9]} 22... Rd8 {[%clk 0:02:20.4]} 23. d7 {[%clk 0:01:11.4]} 23...
Qc6 {[%clk 0:02:19.1]} 24. Bf3 {[%clk 0:01:02.3]} 24... Kg7 {[%clk 0:02:10.2]}
25. Nd6 {[%clk 0:00:58.4]} 25... e4 {[%clk 0:01:45.5]} 26. Bxe4 {[%clk
0:00:35.4]} 26... Qxd7 {[%clk 0:01:34.3]} 27. Bxb7 {[%clk 0:00:29.1]} 27... Bxd6
{[%clk 0:01:32.8]} 28. Bf3 {[%clk 0:00:19]} 28... Qe7 {[%clk 0:01:23.7]} 29. b4
{[%clk 0:00:12]} 29... Be5 {[%clk 0:01:12.7]} 30. Re1 {[%clk 0:00:11.5]} 30...
Qf6 {[%clk 0:01:10.2]} 31. Qe4 {[%clk 0:00:11.1]} 31... Bc3 {[%clk 0:01:10.2]}
32. Rf1 {[%clk 0:00:09.9]} 32... Rd2 {[%clk 0:01:09.2]} 33. Qc6 {[%clk
0:00:06.7]} 33... Rd6 {[%clk 0:01:04.8]} 34. Qc8 {[%clk 0:00:04.5]} 34... Be5
{[%clk 0:01:04.9]} 35. Bb7 {[%clk 0:00:03.8]} 35... Rd8 {[%clk 0:01:01.4]} 36.
Qc6 {[%clk 0:00:04.1]} 36... Rd6 {[%clk 0:01:02.3]} 37. Qc8 {[%clk 0:00:04.9]}
37... Rd2 {[%clk 0:01:01]} 38. g3 {[%clk 0:00:05.2]} 38... Bd4 {[%clk
0:00:59.6]} 39. Kg2 {[%clk 0:00:04.2]} 39... Rxf2+ {[%clk 0:01:00.6]} 40. Rxf2
{[%clk 0:00:04.5]} 40... Qxf2+ {[%clk 0:01:02.2]} 41. Kh3 {[%clk 0:00:05.7]}
41... Qf1+ {[%clk 0:01:00.9]} 42. Kh4 {[%clk 0:00:05.5]} 42... Bf6+ {[%clk
0:00:59.5]} 43. Kg4 {[%clk 0:00:06.5]} 43... h5# {[%clk 0:01:00.4]} 0-1

[Event "*** Titled Tuesday 3|2 Blitz"]
[Site "Chess.com"]
[Date "2016.08.02"]
[Round "7"]
[White "MFBerna"]
[Black "Schemato"]
[Result "0-1"]
[WhiteElo "2138"]
[BlackElo "2243"]
[TimeControl "180+2"]
[EndTime "12:35:11 PDT"]
[Termination "Schemato won by resignation"]

1. d4 {[%clk 0:03:01.9]} 1... e6 {[%clk 0:03:01]} 2. c4 {[%clk 0:03:03.8]} 2...
f5 {[%clk 0:03:01.9]} 3. g3 {[%clk 0:03:03.2]} 3... Nf6 {[%clk 0:03:01.4]} 4.
Bg2 {[%clk 0:03:04.1]} 4... c6 {[%clk 0:03:02.9]} 5. Nf3 {[%clk 0:03:05.7]} 5...
d5 {[%clk 0:03:04.4]} 6. O-O {[%clk 0:03:07.2]} 6... Bd6 {[%clk 0:03:05.6]} 7.
Ne5 {[%clk 0:03:07.1]} 7... O-O {[%clk 0:03:04.3]} 8. Nc3 {[%clk 0:03:08.2]}
8... Nbd7 {[%clk 0:03:00.7]} 9. Bf4 {[%clk 0:03:09.3]} 9... Qe7 {[%clk
0:02:49.4]} 10. cxd5 {[%clk 0:02:55.5]} 10... exd5 {[%clk 0:02:45.7]} 11. Nd3
{[%clk 0:02:54.5]} 11... Ne4 {[%clk 0:02:35.9]} 12. Bxd6 {[%clk 0:02:44.1]}
12... Qxd6 {[%clk 0:02:36.6]} 13. f3 {[%clk 0:02:39.6]} 13... Nef6 {[%clk
0:02:21.7]} 14. Qb3 {[%clk 0:02:35.7]} 14... Kh8 {[%clk 0:02:06.6]} 15. Rad1
{[%clk 0:02:29.9]} 15... Nb6 {[%clk 0:02:06.7]} 16. Ne5 {[%clk 0:02:21.6]} 16...
Be6 {[%clk 0:02:06.4]} 17. a4 {[%clk 0:02:19]} 17... Rab8 {[%clk 0:02:04.9]} 18.
a5 {[%clk 0:02:07.8]} 18... Nc4 {[%clk 0:02:00.9]} 19. Nxc4 {[%clk 0:02:03.6]}
19... dxc4 {[%clk 0:02:02.8]} 20. Qa4 {[%clk 0:01:58.5]} 20... f4 {[%clk
0:02:02.2]} 21. g4 {[%clk 0:01:55]} 21... Nd5 {[%clk 0:01:51.3]} 22. Qxc4 {[%clk
0:01:34.4]} 22... Ne3 {[%clk 0:01:46.7]} 23. Qc5 {[%clk 0:01:35.5]} 23... Qxc5
{[%clk 0:01:40.7]} 24. dxc5 {[%clk 0:01:31.1]} 24... Nxf1 {[%clk 0:01:40.8]} 25.
Bxf1 {[%clk 0:01:29.4]} 25... Rbd8 {[%clk 0:01:42.4]} 26. Rd3 {[%clk 0:01:21.9]}
26... Rxd3 {[%clk 0:01:40.5]} 27. exd3 {[%clk 0:01:23.8]} 27... Bd5 {[%clk
0:01:35.4]} 28. Kf2 {[%clk 0:01:23.2]} 28... Re8 {[%clk 0:01:36.2]} 29. Ne4
{[%clk 0:01:24]} 29... Bxe4 {[%clk 0:01:36.8]} 30. dxe4 {[%clk 0:01:21.7]} 30...
Rd8 {[%clk 0:01:37.4]} 31. Ke1 {[%clk 0:00:45.5]} 31... Rd4 {[%clk 0:01:31.6]}
32. a6 {[%clk 0:00:45.5]} 32... bxa6 {[%clk 0:01:28.3]} 33. Bxa6 {[%clk
0:00:47.4]} 33... Rb4 {[%clk 0:01:29.4]} 34. Kd2 {[%clk 0:00:45.4]} 34... Rxb2+
{[%clk 0:01:29.5]} 35. Kc3 {[%clk 0:00:47]} 35... Rb8 {[%clk 0:01:17.5]} 36. Kd4
{[%clk 0:00:46.6]} 36... Rb3 {[%clk 0:00:54.6]} 37. Be2 {[%clk 0:00:26.6]} 37...
a5 {[%clk 0:00:43.5]} 38. Ke5 {[%clk 0:00:27.3]} 38... a4 {[%clk 0:00:43.6]} 39.
Bc4 {[%clk 0:00:26.8]} 39... Rxf3 {[%clk 0:00:37.3]} 40. Kd6 {[%clk 0:00:25.9]}
40... a3 {[%clk 0:00:29.1]} 41. e5 {[%clk 0:00:18.4]} 41... Rc3 {[%clk
0:00:27.1]} 42. Ba2 {[%clk 0:00:09.4]} 42... f3 {[%clk 0:00:26.5]} 43. e6 {[%clk
0:00:10.9]} 43... Re3 {[%clk 0:00:22.9]} 44. e7 {[%clk 0:00:08.8]} 44... Rxe7
{[%clk 0:00:23.2]} 45. Kxe7 {[%clk 0:00:09.6]} 45... f2 {[%clk 0:00:24.4]} 0-1

[Event "*** Titled Tuesday 3|2 Blitz"]
[Site "Chess.com"]
[Date "2016.08.02"]
[Round "7"]
[White "Genghis_K"]
[Black "elefante33"]
[Result "1/2-1/2"]
[WhiteElo "2677"]
[BlackElo "2476"]
[TimeControl "180+2"]
[EndTime "12:35:26 PDT"]
[Termination "Game drawn by repetition"]

1. e4 {[%clk 0:02:55.2]} 1... c5 {[%clk 0:03:00.1]} 2. Nf3 {[%clk 0:02:55.2]}
2... g6 {[%clk 0:03:01.3]} 3. d4 {[%clk 0:02:53.4]} 3... cxd4 {[%clk 0:03:02.4]}
4. Nxd4 {[%clk 0:02:55]} 4... Bg7 {[%clk 0:03:03.7]} 5. c4 {[%clk 0:02:56.5]}
5... Nc6 {[%clk 0:03:04.9]} 6. Be3 {[%clk 0:02:58]} 6... Nf6 {[%clk 0:03:05.9]}
7. Nc3 {[%clk 0:02:59.6]} 7... d6 {[%clk 0:03:07]} 8. Be2 {[%clk 0:03:01.1]}
8... O-O {[%clk 0:03:08.2]} 9. O-O {[%clk 0:03:02.5]} 9... Nxd4 {[%clk
0:03:09.3]} 10. Bxd4 {[%clk 0:03:03.4]} 10... Bd7 {[%clk 0:03:10.9]} 11. f3
{[%clk 0:02:51.5]} 11... a5 {[%clk 0:03:10.4]} 12. b3 {[%clk 0:02:48.1]} 12...
Bc6 {[%clk 0:03:10.2]} 13. Qd2 {[%clk 0:02:46]} 13... Nd7 {[%clk 0:03:10.6]} 14.
Bf2 {[%clk 0:02:47.1]} 14... Nc5 {[%clk 0:03:04.5]} 15. Rab1 {[%clk 0:02:47.8]}
15... Qc7 {[%clk 0:02:52.2]} 16. Bd1 {[%clk 0:02:41.6]} 16... Rfc8 {[%clk
0:02:52.2]} 17. Bc2 {[%clk 0:02:40.3]} 17... Qd8 {[%clk 0:02:48.7]} 18. a3
{[%clk 0:02:40.3]} 18... h5 {[%clk 0:02:41.9]} 19. b4 {[%clk 0:02:39.2]} 19...
axb4 {[%clk 0:02:42.9]} 20. axb4 {[%clk 0:02:39.7]} 20... Na4 {[%clk 0:02:40.6]}
21. Bxa4 {[%clk 0:02:18.2]} 21... Bxa4 {[%clk 0:02:41]} 22. Nd5 {[%clk
0:02:19.3]} 22... Rxc4 {[%clk 0:02:20.9]} 23. Qg5 {[%clk 0:01:36.7]} 23... Bf6
{[%clk 0:01:46.3]} 24. Nxf6+ {[%clk 0:01:31.2]} 24... exf6 {[%clk 0:01:47.4]}
25. Qf4 {[%clk 0:01:32.5]} 25... Bc2 {[%clk 0:01:44.4]} 26. Rbc1 {[%clk
0:01:29.7]} 26... Ra2 {[%clk 0:01:41.2]} 27. Rfe1 {[%clk 0:01:24.7]} 27... b5
{[%clk 0:01:34]} 28. Re2 {[%clk 0:01:22.4]} 28... Qe7 {[%clk 0:01:29.5]} 29. Rd2
{[%clk 0:01:19.8]} 29... Qe5 {[%clk 0:01:25.7]} 30. Qe3 {[%clk 0:01:04.7]} 30...
Bb3 {[%clk 0:01:05.4]} 31. Rxa2 {[%clk 0:00:52.1]} 31... Rxc1+ {[%clk
0:01:02.6]} 32. Qxc1 {[%clk 0:00:54]} 32... Bxa2 {[%clk 0:01:04.3]} 33. Qd2
{[%clk 0:00:53.8]} 33... Qa1+ {[%clk 0:00:59.6]} 34. Be1 {[%clk 0:00:53.9]}
34... Bc4 {[%clk 0:01:00.2]} 35. Kf2 {[%clk 0:00:54.5]} 35... Qe5 {[%clk
0:01:00.8]} 36. h4 {[%clk 0:00:48.4]} 36... Kg7 {[%clk 0:00:56.8]} 37. Qe3
{[%clk 0:00:47.9]} 37... Qb2+ {[%clk 0:00:56.2]} 38. Kg3 {[%clk 0:00:48.7]}
38... Qe5+ {[%clk 0:00:55.9]} 39. f4 {[%clk 0:00:45.7]} 39... Qe6 {[%clk
0:00:56.8]} 40. Bc3 {[%clk 0:00:45.6]} 40... Qg4+ {[%clk 0:00:56]} 41. Kf2
{[%clk 0:00:46.5]} 41... Qxh4+ {[%clk 0:00:53.8]} 42. Kg1 {[%clk 0:00:46.4]}
42... Be6 {[%clk 0:00:37.8]} 43. g3 {[%clk 0:00:32.6]} 43... Qg4 {[%clk
0:00:35.1]} 44. Kf2 {[%clk 0:00:33.7]} 44... Qd1 {[%clk 0:00:34.2]} 45. Qd4
{[%clk 0:00:30.1]} 45... Qxd4+ {[%clk 0:00:32.6]} 46. Bxd4 {[%clk 0:00:32]}
46... d5 {[%clk 0:00:20.2]} 47. exd5 {[%clk 0:00:26]} 47... Bxd5 {[%clk
0:00:21.3]} 48. Bc3 {[%clk 0:00:27]} 48... Bc4 {[%clk 0:00:22.3]} 49. Bd4 {[%clk
0:00:28.3]} 49... Bd5 {[%clk 0:00:14.4]} 50. Bc3 {[%clk 0:00:28.8]} 50... Bc4
{[%clk 0:00:15.3]} 51. Bd4 {[%clk 0:00:30.2]} 51... Bd5 {[%clk 0:00:15.7]}
1/2-1/2

[Event "*** Titled Tuesday 3|2 Blitz"]
[Site "Chess.com"]
[Date "2016.08.02"]
[Round "7"]
[White "maheswaran26"]
[Black "MyleneFarmer"]
[Result "1-0"]
[WhiteElo "2064"]
[BlackElo "2343"]
[TimeControl "180+2"]
[EndTime "12:35:28 PDT"]
[Termination "maheswaran26 won by resignation"]

1. d4 {[%clk 0:02:57.9]} 1... d5 {[%clk 0:02:50.3]} 2. Nf3 {[%clk 0:02:56]} 2...
Nf6 {[%clk 0:02:50]} 3. c4 {[%clk 0:02:56.2]} 3... c6 {[%clk 0:02:51.1]} 4. Nc3
{[%clk 0:02:56.3]} 4... e6 {[%clk 0:02:52.1]} 5. e3 {[%clk 0:02:56.3]} 5... Nbd7
{[%clk 0:02:52.7]} 6. Bd3 {[%clk 0:02:53.6]} 6... dxc4 {[%clk 0:02:50.8]} 7.
Bxc4 {[%clk 0:02:53.4]} 7... b5 {[%clk 0:02:52.5]} 8. Bd3 {[%clk 0:02:52.5]}
8... Bd6 {[%clk 0:02:54.2]} 9. O-O {[%clk 0:02:50.5]} 9... O-O {[%clk
0:02:55.7]} 10. a3 {[%clk 0:02:49.2]} 10... Bb7 {[%clk 0:02:55.8]} 11. Qc2
{[%clk 0:02:46]} 11... Rc8 {[%clk 0:02:55.5]} 12. b4 {[%clk 0:02:44.1]} 12... c5
{[%clk 0:02:55.2]} 13. bxc5 {[%clk 0:02:38.2]} 13... Bxf3 {[%clk 0:02:56]} 14.
cxd6 {[%clk 0:02:37.8]} 14... Nd5 {[%clk 0:02:54.7]} 15. Bd2 {[%clk 0:02:30.6]}
15... Qg5 {[%clk 0:02:48.3]} 16. g3 {[%clk 0:02:23]} 16... f5 {[%clk 0:02:31.4]}
17. Rfc1 {[%clk 0:02:04.9]} 17... Rf6 {[%clk 0:02:25.5]} 18. e4 {[%clk
0:01:53.8]} 18... Qh5 {[%clk 0:02:25.6]} 19. exd5 {[%clk 0:01:46.3]} 19... g5
{[%clk 0:02:16.8]} 20. Bxg5 {[%clk 0:01:39.2]} 20... Qxg5 {[%clk 0:02:17.5]} 21.
Ne4 {[%clk 0:01:35.8]} 21... fxe4 {[%clk 0:02:16.8]} 22. Qxc8+ {[%clk
0:01:35.3]} 22... Nf8 {[%clk 0:02:16.1]} 23. dxe6 {[%clk 0:01:22.9]} 23... Rxe6
{[%clk 0:01:56.8]} 24. d7 {[%clk 0:01:17.4]} 24... Rd6 {[%clk 0:01:41.3]} 25.
Bf1 {[%clk 0:00:48]} 25... e3 {[%clk 0:01:35.8]} 26. Qc5 {[%clk 0:00:44.4]}
26... Rd5 {[%clk 0:01:14.9]} 27. d8=Q {[%clk 0:00:36.8]} 27... Qxd8 {[%clk
0:01:08]} 28. Qc7 {[%clk 0:00:33.5]} 28... Qg5 {[%clk 0:01:06.6]} 29. Qf4 {[%clk
0:00:31.6]} 29... Qxf4 {[%clk 0:01:02.6]} 30. gxf4 {[%clk 0:00:32.3]} 30... Rd6
{[%clk 0:00:56.4]} 31. fxe3 {[%clk 0:00:33]} 31... Be4 {[%clk 0:00:54.5]} 32.
Kf2 {[%clk 0:00:31.7]} 32... Ne6 {[%clk 0:00:55.4]} 33. Bh3 {[%clk 0:00:30.5]}
33... Ng7 {[%clk 0:00:55.8]} 34. Rc7 {[%clk 0:00:30]} 34... Rh6 {[%clk
0:00:56.6]} 35. Rg1 {[%clk 0:00:28.3]} 35... Bg6 {[%clk 0:00:56.3]} 36. f5
{[%clk 0:00:26.4]} 36... Rxh3 {[%clk 0:00:57.2]} 37. fxg6 {[%clk 0:00:26.7]}
37... Rxh2+ {[%clk 0:00:58.3]} 38. Kf3 {[%clk 0:00:26.8]} 38... Rh3+ {[%clk
0:00:59.1]} 39. Ke2 {[%clk 0:00:27.6]} 39... Rh2+ {[%clk 0:00:54.5]} 40. Kd3
{[%clk 0:00:27.1]} 40... hxg6 {[%clk 0:00:52.9]} 41. Rxg6 {[%clk 0:00:26.9]}
41... Kh8 {[%clk 0:00:54.2]} 42. Rgxg7 {[%clk 0:00:26.5]} 42... b4 {[%clk
0:00:55.8]} 43. Rgd7 {[%clk 0:00:26.2]} 43... Rg2 {[%clk 0:00:55]} 44. Rd8+
{[%clk 0:00:21.6]} 44... Rg8 {[%clk 0:00:55.6]} 45. Rxg8+ {[%clk 0:00:22.2]}
45... Kxg8 {[%clk 0:00:56.7]} 46. axb4 {[%clk 0:00:23.1]} 1-0